fUST/lending_fUST_20240925
["ID","MTS","AMOUNT","RATE_DAILY","PERIOD"]
[339087205,1727227497509,500.0,0.00025,120]
[339087206,1727227497539,500.0,0.00025,120]
[339087207,1727227497568,505.19877725,0.00025,120]
[339087208,1727227497597,508.77874029,0.00025,120]
[339087209,1727227497630,820.81,0.00025,120]
[339087210,1727227497776,500.0,0.00025,120]
[339087211,1727227497818,500.0,0.00025,120]
[339087212,1727227497913,820.81,0.00025,120]
[339087213,1727227498042,500.0,0.00025,120]
[339087214,1727227498079,500.0,0.00025,120]
[339087215,1727227498436,500.0,0.00025,120]
[339087216,1727227498465,820.81,0.00025,120]
[339087217,1727227498498,357.95088442,0.00025,120]
[339087218,1727227498529,500.0,0.00025,120]
[339087219,1727227498559,820.81,0.00025,120]
[339087220,1727227498589,500.0,0.00025,120]
[339087221,1727227498635,500.0,0.00025,120]
[339087222,1727227498794,820.81,0.00025,120]
[339087223,1727227498860,500.0,0.00025,120]
[339087224,1727227498920,500.0,0.00025,120]
[339087225,1727227499107,820.86748237,0.00025,120]
[339087226,1727227499188,500.0,0.00025,120]
[339087227,1727227499222,329.65760364,0.00025,120]
[339087228,1727227499491,500.0,0.00025,120]
[339087229,1727227499993,612.90559201,0.00025,120]
[339087230,1727227500565,509.00136768,0.00025,120]
[339087231,1727227501311,500.0,0.00025,120]
[339087232,1727227501523,500.0,0.00025,120]
[339087233,1727227501620,500.0,0.00025,120]
[339087234,1727227501651,869.76,0.00025,120]
[339087235,1727227501852,500.0,0.00025,120]
[339087236,1727227501883,500.0,0.00025,120]
[339087237,1727227501925,500.0,0.00025,120]
[339087238,1727227501955,869.76,0.00025,120]
[339087239,1727227502176,500.0,0.00025,120]
[339087240,1727227502207,500.0,0.00025,120]
[339087241,1727227502276,869.76,0.00025,120]
[339087242,1727227502526,448.65393895,0.00025,120]
[339087243,1727227502633,500.0,0.00025,120]
[339087244,1727227502672,500.0,0.00025,120]
[339087245,1727227502934,500.0,0.00025,120]
[339087246,1727227502966,869.76,0.00025,120]
[339087247,1727227503019,500.0,0.00025,120]
[339087248,1727227503055,500.0,0.00025,120]
[339087249,1727227503113,500.0,0.00025,120]
[339087250,1727227503243,500.0,0.00025,120]
[339087251,1727227503310,500.0,0.00025,120]
[339087252,1727227503341,869.76,0.00025,120]
[339087253,1727227503402,500.0,0.00025,120]
[339087254,1727227503435,500.0,0.00025,120]
[339087255,1727227503546,500.0,0.00025,120]
[339087256,1727227503614,500.0,0.00025,120]
[339087257,1727227503645,869.76,0.00025,120]
[339087258,1727227503677,581.85577822,0.00025,120]
[339087259,1727227503760,601.38013136,0.00025,120]
[339087260,1727227503827,500.0,0.00025,120]
[339087261,1727227503885,500.0,0.00025,120]
[339087262,1727227503916,869.76,0.00025,120]
[339087263,1727227503973,500.0,0.00025,120]
[339087264,1727227504005,500.0,0.00025,120]
[339087265,1727227504138,560.15503421,0.00025,120]
[339087266,1727227504223,869.76,0.00025,120]
[339087267,1727227504277,500.0,0.00025,120]
[339087268,1727227504311,500.0,0.00025,120]
[339087269,1727227504448,938.94,0.00025,120]
[339087270,1727227504528,869.76,0.00025,120]
[339087271,1727227504562,500.0,0.00025,120]
[339087272,1727227504811,869.76,0.00025,120]
[339087273,1727227504867,500.0,0.00025,120]
[339087274,1727227504956,500.0,0.00025,120]
[339087275,1727227505021,500.0,0.00025,120]
[339087276,1727227505062,938.94,0.00025,120]
[339087277,1727227505176,869.76,0.00025,120]
[339087278,1727227505261,500.0,0.00025,120]
[339087279,1727227505292,500.0,0.00025,120]
[339087280,1727227505322,938.94,0.00025,120]
[339087281,1727227505529,869.76,0.00025,120]
[339087282,1727227505561,515.63644894,0.00025,120]
[339087283,1727227505808,500.0,0.00025,120]
[339087284,1727227505853,938.94,0.00025,120]
[339087285,1727227505884,500.0,0.00025,120]
[339087286,1727227505933,869.76,0.00025,120]
[339087287,1727227505969,500.0,0.00025,120]
[339087288,1727227506164,869.76,0.00025,120]
[339087289,1727227506234,938.94,0.00025,120]
[339087290,1727227506288,500.0,0.00025,120]
[339087291,1727227506322,487.35483845,0.00025,120]
[339087292,1727227506445,500.0,0.00025,120]
[339087293,1727227506485,869.76,0.00025,120]
[339087294,1727227506910,938.94,0.00025,120]
[339087295,1727227506939,500.0,0.00025,120]
[339087296,1727227506973,869.76,0.00025,120]
[339087297,1727227507059,938.94,0.00025,120]
[339087298,1727227507104,500.0,0.00025,120]
[339087299,1727227507149,869.76,0.00025,120]
[339087300,1727227507354,938.94,0.00025,120]
[339087301,1727227507386,500.0,0.00025,120]
[339087302,1727227507429,869.76,0.00025,120]
[339087303,1727227507631,938.94,0.00025,120]
[339087304,1727227507820,500.0,0.00025,120]
[339087305,1727227507915,938.94,0.00025,120]
[339087306,1727227508120,869.76,0.00025,120]
[339087307,1727227508261,938.94,0.00025,120]
[339087308,1727227508311,1989.07,0.00025,120]
[339087309,1727227508397,500.0,0.00025,120]
[339087310,1727227508434,869.76,0.00025,120]
[339087311,1727227508562,938.94,0.00025,120]
[339087312,1727227508639,1989.07,0.00025,120]
[339087313,1727227508718,500.0,0.00025,120]
[339087314,1727227508755,869.76,0.00025,120]
[339087315,1727227509020,500.0,0.00025,120]
[339087316,1727227509052,869.76,0.00025,120]
[339087317,1727227509095,938.94,0.00025,120]
[339087318,1727227509302,1989.07,0.00025,120]
[339087319,1727227509336,500.0,0.00025,120]
[339087320,1727227509414,938.94,0.00025,120]
[339087321,1727227509475,869.76,0.00025,120]
[339087322,1727227509607,1989.07,0.00025,120]
[339087323,1727227509732,938.94,0.00025,120]
[339087324,1727227509811,606.13,0.00025,120]
[339087325,1727227509841,869.89582857,0.00025,120]
[339087326,1727227509886,500.0,0.00025,120]
[339087327,1727227509921,1989.07,0.00025,120]
[339087328,1727227510044,938.94,0.00025,120]
[339087329,1727227510084,500.0,0.00025,120]
[339087330,1727227510307,938.94,0.00025,120]
[339087331,1727227510338,500.0,0.00025,120]
[339087332,1727227510368,500.0,0.00025,120]
[339087333,1727227510619,500.0,0.00025,120]
[339087334,1727227510655,500.0,0.00025,120]
[339087335,1727227510720,938.94,0.00025,120]
[339087336,1727227510751,1989.07,0.00025,120]
[339087337,1727227510910,500.0,0.00025,120]
[339087338,1727227511019,1989.07,0.00025,120]
[339087339,1727227511053,938.94,0.00025,120]
[339087340,1727227511082,500.0,0.00025,120]
[339087341,1727227511266,500.0,0.00025,120]
[339087342,1727227511334,569.78045266,0.00025,120]
[339087346,1727227639170,500.0,0.00021,30]
[339087347,1727227639516,500.0,0.00021,30]
[339087348,1727227639990,500.0,0.00021,30]
[339087349,1727227640377,500.0,0.00021,30]
[339087350,1727227640759,500.0,0.00021,30]
[339087351,1727227641090,500.0,0.00021,30]
[339087352,1727227651154,240.88257052,0.00021,30]
[339087355,1727227702332,10098.33373681,0.000125,2]
[339087357,1727227723595,10551.87483603,0.00014,2]
[339087358,1727227724059,11556.34026891,0.0001,2]
[339087359,1727227725952,26748.19439855,0.000129,2]
[339087360,1727227730313,1000.0,0.000125,2]
[339087361,1727227750537,500.0,0.00014,2]
[339087362,1727227753124,-1641.60448184,0.00014813,2]
[339087363,1727227780381,200.0,0.00014,2]
[339087378,1727227807505,191.5249124,0.00013974,2]
[339087379,1727227831082,150.0,0.00014,2]
[339087397,1727227831948,-259.38028426,0.00014813,2]
[339087399,1727227831958,-322.5902772,0.000149,2]
[339087404,1727227832073,-23.76855505,0.000149,2]
[339087405,1727227832082,-3442.36574165,0.000149,2]
[339087406,1727227832094,-300.0,0.00014998,2]
[339087407,1727227832104,-300.0,0.00014998,2]
[339087408,1727227832114,-500.0,0.00014999,2]
[339087409,1727227832124,-474.62539053,0.00014999,2]
[339087410,1727227832135,-500.0,0.00014999,2]
[339087411,1727227832145,-16194.33733807,0.00015,2]
[339087453,1727227838289,-2500.0,0.00015,2]
[339087455,1727227838301,-1938.63892331,0.00015,2]
[339087468,1727227838420,-2874.72852195,0.00015,2]
[339087470,1727227838435,-2840.31324716,0.00015,2]
[339087481,1727227838538,-23651.98196951,0.00015,2]
[339087483,1727227838548,-471.73219564,0.00015,2]
[339087485,1727227838558,-500.0,0.00015,2]
[339087487,1727227838568,-500.0,0.00015,2]
[339087489,1727227838577,-500.0,0.00015,2]
[339087491,1727227838586,-500.0,0.00015,2]
[339087493,1727227838595,-500.0,0.00015,2]
[339087495,1727227838605,-500.0,0.00015,2]
[339087497,1727227838615,-504.42702909,0.00015,2]
[339087499,1727227838624,-500.0,0.00015,2]
[339087501,1727227838634,-500.0,0.00015548,2]
[339087502,1727227838643,-1112.39617522,0.00015548,2]
[339087504,1727227838653,-321.7682589,0.00015548,2]
[339087506,1727227838663,-1000.0,0.00015548,2]
[339087508,1727227838673,-624.98851704,0.00015548,2]
[339087509,1727227838683,-1000.0,0.00015548,2]
[339087511,1727227838694,-1000.0,0.00015548,2]
[339087513,1727227838703,-173.4318669,0.00016017,2]
[339087515,1727227838713,-420.0,0.00016415,2]
[339087517,1727227838723,-420.0,0.00016498,2]
[339087518,1727227838732,-1500.0,0.0001655,2]
[339087520,1727227838743,-1500.0,0.0001655,2]
[339087522,1727227838752,-1500.0,0.0001655,2]
[339087524,1727227838761,-167.58165,0.00017265,2]
[339087526,1727227838772,-167.58165,0.0001734,2]
[339087528,1727227838782,-167.58165,0.00017415,2]
[339087530,1727227838791,-247.29018679,0.00017442,2]
[339087532,1727227838801,-500.0,0.00017442,2]
[339087533,1727227838810,-500.0,0.00017442,2]
[339087535,1727227838819,-500.0,0.00017442,2]
[339087537,1727227838829,-320.87685182,0.00017442,2]
[339087539,1727227838839,-500.0,0.00017442,2]
[339087540,1727227838848,-171.54101375,0.00017443,2]
[339087555,1727227839997,-24728.45898625,0.00017443,2]
[339087556,1727227840007,-167.58165,0.0001749,2]
[339087557,1727227840018,-167.58165,0.00017565,2]
[339087558,1727227840030,-167.58165,0.0001764,2]
[339087559,1727227840040,-167.58165,0.00017715,2]
[339087560,1727227840051,-3442.36574161,0.00017788,2]
[339087561,1727227840062,-167.58165,0.0001779,2]
[339087562,1727227840071,-2000.0,0.00017847,2]
[339087563,1727227840080,-2001.386949,0.00017847,2]
[339087564,1727227840089,-2000.0,0.00017847,2]
[339087565,1727227840099,-167.58165,0.00017865,2]
[339087566,1727227840108,-167.58165,0.0001794,2]
[339087567,1727227840117,-184.36609895,0.00017961,2]
[339087568,1727227840127,-587.0,0.00017965,2]
[339087569,1727227840136,-167.58165,0.00018015,2]
[339087570,1727227840146,-167.58165,0.0001809,2]
[339087571,1727227840158,-587.0,0.00018148,2]
[339087572,1727227840169,-167.58165,0.00018165,2]
[339087573,1727227840178,-500.0,0.00018906,2]
[339087574,1727227840187,-567.4,0.0001898,3]
[339087575,1727227840198,-48715.9414839,0.0001899,3]
[339087576,1727227840207,-5000.0,0.00019,2]
[339087577,1727227840218,-164.929272,0.00019178,2]
[339087578,1727227840228,-162.567668,0.00019178,2]
[339087579,1727227840238,-153.0,0.00019337,2]
[339087580,1727227840248,-153.0,0.00019337,2]
[339087581,1727227840259,-153.0,0.00019337,2]
[339087582,1727227840270,-153.0,0.00019337,2]
[339087583,1727227840286,-153.0,0.00019337,2]
[339087584,1727227840296,-306.0,0.00019337,2]
[339087585,1727227840308,-153.0,0.00019337,2]
[339087586,1727227840318,-153.0,0.00019337,2]
[339087587,1727227840328,-306.0,0.00019337,2]
[339087588,1727227840338,-306.0,0.00019337,2]
[339087589,1727227840349,-153.0,0.00019337,2]
[339087590,1727227840360,-153.0,0.00019337,2]
[339087591,1727227840369,-153.0,0.00019337,2]
[339087592,1727227840378,-306.0,0.00019337,2]
[339087593,1727227840388,-153.0,0.00019337,2]
[339087594,1727227840396,-154.8658611,0.00019337,2]
[339087595,1727227840406,-2500.0,0.00019384,2]
[339087596,1727227840418,-2295.30361169,0.00019384,2]
[339087597,1727227840429,-823.0,0.00019662,2]
[339087598,1727227840439,-153.0,0.00019726,2]
[339087599,1727227840449,-153.0,0.00019726,2]
[339087600,1727227840460,-153.0,0.00019726,2]
[339087601,1727227840470,-153.0,0.00019726,2]
[339087602,1727227840479,-2732.45383361,0.0001978,2]
[339087603,1727227840488,-5000.0,0.0001978,2]
[339087604,1727227840497,-1000.0,0.0001978,2]
[339087605,1727227840507,-162.6924271,0.00019808,2]
[339087606,1727227840516,-153.0,0.00019808,2]
[339087607,1727227840526,-153.0,0.00019808,2]
[339087608,1727227840538,-153.0,0.00019808,2]
[339087609,1727227840548,-153.0,0.00019808,2]
[339087610,1727227840558,-153.0,0.00019808,2]
[339087611,1727227840568,-153.8881973,0.00019808,2]
[339087612,1727227840579,-626.7650533,0.0001985,2]
[339087613,1727227840590,-146147.824452,0.0001987,3]
[339087614,1727227840601,-500.0,0.00019873,2]
[339087615,1727227840611,-500.0,0.00019873,2]
[339087616,1727227840622,-48715.9414839,0.0001988,3]
[339087617,1727227840633,-244.5172,0.0001989,2]
[339087618,1727227840643,-5187.61933354,0.0001989,2]
[339087619,1727227840658,-501.98208771,0.0001989,2]
[339087636,1727227843302,-13425.08403697,0.0001989,2]
[339087648,1727227846113,-415.71086318,0.00015,2]
[339087649,1727227846123,-51758.9525187,0.0001989,2]
[339087650,1727227846133,-150.112233,0.000199,2]
[339087651,1727227846142,-150.112233,0.000199,2]
[339087652,1727227846151,-2576.28194784,0.000199,2]
[339087653,1727227846161,-500.0,0.00019901,2]
[339087654,1727227846170,-823.0,0.00019962,2]
[339087655,1727227846179,-48715.9414839,0.00019963,3]
[339087656,1727227846188,-500.0,0.00019973,2]
[339087657,1727227846199,-500.0,0.00019973,2]
[339087658,1727227846208,-500.0,0.00019973,2]
[339087659,1727227846218,-506.28521145,0.00019973,2]
[339087660,1727227846227,-500.0,0.00019973,2]
[339087661,1727227846236,-500.0,0.00019973,2]
[339087662,1727227846245,-500.0,0.00019973,2]
[339087663,1727227846254,-500.0,0.00019973,2]
[339087664,1727227846263,-455.58564372,0.00019973,2]
[339087665,1727227846273,-607.11022569,0.00019973,2]
[339087666,1727227846285,-500.0,0.00019973,2]
[339087667,1727227846295,-500.0,0.00019973,2]
[339087668,1727227846304,-162.40887718,0.0001998,2]
[339087669,1727227846313,-204.3582581,0.00019989,2]
[339087670,1727227846324,-5049.24640969,0.00019989,2]
[339087671,1727227846334,-295.731242,0.0001999,2]
[339087672,1727227846343,-295.731242,0.0001999,2]
[339087673,1727227846353,-151.0,0.0001999,2]
[339087674,1727227846362,-151.0,0.0001999,2]
[339087675,1727227846371,-151.0,0.0001999,2]
[339087676,1727227846381,-151.0,0.0001999,2]
[339087677,1727227846391,-304.80469,0.0001999,2]
[339087678,1727227846400,-304.80469,0.0001999,2]
[339087679,1727227846409,-166.026231,0.0001999,2]
[339087680,1727227846419,-2684.605724,0.0001999,2]
[339087681,1727227846428,-2684.605724,0.0001999,2]
[339087682,1727227846437,-121550.11297078,0.0001999,2]
[339087685,1727227923142,150.0,0.00021,60]
[339087686,1727228248479,184.57,0.00021,60]
[339087689,1727228729250,3100.0,0.000141,2]
[339087699,1727228958098,-226.2441342,0.00014556,2]
[339087700,1727228958120,-1207.47108392,0.00014613,2]
[339087998,1727229038938,-169.7913663,0.00014556,2]
[339087999,1727229038947,-1399.29553374,0.00014613,2]
[339088000,1727229038956,-250.0,0.00014697,2]
[339088001,1727229038965,-254.9409752,0.00014713,2]
[339088002,1727229038975,-200.0,0.00014813,2]
[339088003,1727229038984,-413.1123126,0.00014864,2]
[339088004,1727229038993,-200.0,0.00015,2]
[339088005,1727229039002,-300.0,0.00016501,2]
[339088006,1727229039012,-500.0,0.00016502,2]
[339088007,1727229039021,-332.67233852,0.00016502,2]
[339088023,1727229040142,-167.32766148,0.00016502,2]
[339088024,1727229040157,-500.0,0.00016502,2]
[339088025,1727229040167,-500.0,0.00016502,2]
[339088026,1727229040177,-500.0,0.00016502,2]
[339088027,1727229040187,-500.0,0.00016502,2]
[339088028,1727229040200,-500.0,0.00016502,2]
[339088029,1727229040212,-500.0,0.00016502,2]
[339088030,1727229040223,-567.77272385,0.00016502,2]
[339088031,1727229040233,-500.0,0.00016502,2]
[339088032,1727229040245,-500.0,0.00016502,2]
[339088033,1727229040256,-24900.0,0.00016503,2]
[339088034,1727229040268,-2589.15385855,0.00016825,2]
[339088035,1727229040279,-204.960169,0.00016927,2]
[339088036,1727229040291,-204.960169,0.00016974,2]
[339088038,1727229040302,-204.960169,0.0001702,2]
[339088041,1727229040314,-204.960169,0.00017067,2]
[339088042,1727229040327,-204.960169,0.00017113,2]
[339088043,1727229040337,-204.960169,0.0001716,2]
[339088044,1727229040349,-204.960169,0.00017206,2]
[339088045,1727229040359,-204.960169,0.00017252,2]
[339088046,1727229040370,-204.960169,0.00017299,2]
[339088047,1727229040381,-204.960169,0.00017345,2]
[339088048,1727229040391,-204.960169,0.00017392,2]
[339088049,1727229040403,-204.960169,0.00017438,2]
[339088050,1727229040416,-204.960169,0.00017485,2]
[339088051,1727229040427,-204.960169,0.00017531,2]
[339088052,1727229040438,-204.960169,0.00017578,2]
[339088053,1727229040449,-204.960169,0.00017624,2]
[339088054,1727229040459,-204.960169,0.0001767,2]
[339088055,1727229040469,-204.960169,0.00017717,2]
[339088056,1727229040478,-204.960169,0.00017763,2]
[339088057,1727229040488,-500.0,0.00017808,2]
[339088058,1727229040499,-204.960169,0.0001781,2]
[339088059,1727229040510,-420.0,0.00018151,2]
[339088060,1727229040521,-501.34579052,0.00018853,2]
[339088061,1727229040532,-732.020754,0.00019,2]
[339088062,1727229040543,-153.0,0.00019041,2]
[339088063,1727229040555,-153.0,0.00019041,2]
[339088064,1727229040567,-153.0,0.00019141,2]
[339088065,1727229040578,-164.666447,0.00019178,2]
[339088066,1727229040589,-411.950204,0.00019328,2]
[339088067,1727229040602,-411.950204,0.00019328,2]
[339088068,1727229040615,-160.0,0.00019371,3]
[339088069,1727229040627,-306.0,0.00019389,2]
[339088070,1727229040640,-2589.15385849,0.00019434,2]
[339088071,1727229040653,-7044.49958861,0.00019606,2]
[339088072,1727229040664,-160.0,0.00019746,4]
[339088073,1727229040675,-500.0,0.00019845,2]
[339088074,1727229040685,-1000.0,0.0001988,2]
[339088075,1727229040698,-2319.69447679,0.0001989,2]
[339088076,1727229040708,-244.5775,0.0001989,2]
[339088077,1727229040718,-899.76157015,0.0001989,2]
[339088078,1727229040765,-500.0,0.00016502,2]
[339088079,1727229040777,-310.62475497,0.00016502,2]
[339088109,1727229046145,-189.37524503,0.00016502,2]
[339088110,1727229046157,-474.62539053,0.00016502,2]
[339088111,1727229046168,-4337.89429002,0.0001989,2]
[339088112,1727229046178,-500.0,0.000199,2]
[339088114,1727229046189,-587.0,0.00019966,2]
[339088116,1727229046200,-261.77796426,0.00019969,2]
[339088118,1727229046211,-253.90550636,0.00019969,2]
[339088120,1727229046223,-500.0,0.00019969,2]
[339088122,1727229046234,-643.11530886,0.00019969,2]
[339088124,1727229046245,-500.0,0.00019969,2]
[339088126,1727229046255,-64514.86349685,0.0001997,3]
[339088129,1727229201283,1079.9,0.00015,10]
[339088131,1727229241822,1364.62,0.0002203,120]
[339088133,1727229569296,10000.0,0.000141,2]
[339088134,1727229577217,10000.0,0.000141,2]
[339088135,1727229585341,10000.0,0.000141,2]
[339088136,1727229592185,10000.0,0.000141,2]
[339088137,1727229597890,10000.0,0.000141,2]
[339088138,1727229605221,10000.0,0.000141,2]
[339088139,1727229612425,3110.84950417,0.000141,2]
[339088140,1727229623302,10000.0,0.000141,2]
[339088141,1727229628882,10000.0,0.000141,2]
[339088142,1727229635588,10000.0,0.000141,2]
[339088143,1727229635680,579.62,0.00010959,2]
[339088144,1727229655694,7928.0,0.000141,2]
[339088145,1727229660574,300.0,0.00014099,2]
[339088146,1727229662607,300.0,0.00014099,2]
[339088149,1727229720566,300.0,0.00014099,2]
[339088150,1727229723848,300.0,0.00014099,2]
[339088152,1727229780582,300.0,0.00014099,2]
[339088153,1727229782902,300.0,0.00014099,2]
[339088154,1727229810738,5084.88125428,0.00014,2]
[339088155,1727229820388,2003.74257441,0.00014,2]
[339088156,1727229840465,300.0,0.00014099,2]
[339088157,1727229842617,300.0,0.00014099,2]
[339088158,1727229900517,300.0,0.00014099,2]
[339088159,1727229902623,300.0,0.00014099,2]
[339088160,1727229961170,300.0,0.00014099,2]
[339088161,1727229963063,300.0,0.00014099,2]
[339088162,1727230020812,270.0,0.00014099,2]
[339088163,1727230023802,300.0,0.00014099,2]
[339088165,1727230082574,300.0,0.00014099,2]
[339088168,1727230142437,300.0,0.00014099,2]
[339088169,1727230145154,-3264.61110263,0.000141,2]
[339088175,1727230205451,300.0,0.00014099,2]
[339088253,1727230238637,-3624.5393932,0.000141,2]
[339088255,1727230238647,-10000.0,0.000141,2]
[339088257,1727230238658,-1000.0,0.000145,2]
[339088259,1727230238669,-158.987393,0.0001464,2]
[339088261,1727230238679,-722.054502,0.00014673,2]
[339088262,1727230238689,-158.987393,0.00014793,2]
[339088264,1727230238698,-158.987393,0.00014945,2]
[339088266,1727230238707,-158.987393,0.00015098,2]
[339088268,1727230238717,-500.0,0.00015189,2]
[339088269,1727230238726,-174.59640653,0.00015189,2]
[339088271,1727230238735,-500.0,0.00015189,2]
[339088273,1727230238745,-500.0,0.00015189,2]
[339088274,1727230238754,-500.0,0.00015189,2]
[339088275,1727230238763,-500.0,0.00015189,2]
[339088276,1727230238772,-500.0,0.00015189,2]
[339088277,1727230238781,-500.0,0.00015189,2]
[339088278,1727230238790,-158.987393,0.00015251,2]
[339088279,1727230238799,-2695.80534392,0.00015303,2]
[339088280,1727230238809,-158.987393,0.00015403,2]
[339088281,1727230238818,-420.0,0.00015445,2]
[339088282,1727230238827,-587.0,0.00016919,2]
[339088283,1727230238837,-528.58885196,0.00017435,2]
[339088284,1727230238846,-177.73385445,0.00017435,2]
[339088285,1727230238856,-186.00042136,0.00017435,2]
[339088286,1727230238865,-500.0,0.00017435,2]
[339088287,1727230238874,-259.81821148,0.00017435,2]
[339088288,1727230238884,-500.0,0.00017435,2]
[339088289,1727230238893,-500.0,0.00017435,2]
[339088290,1727230238902,-370.1807162,0.00017435,2]
[339088291,1727230238912,-189.31847366,0.00017665,2]
[339088292,1727230238921,-22997.88294401,0.00017755,2]
[339088293,1727230238933,-2530.75767558,0.00017755,2]
[339088325,1727230240364,-371.78809232,0.00016429,2]
[339088328,1727230240377,-5582.45821168,0.00016429,2]
[339088331,1727230240387,-5954.246304,0.00016651,2]
[339088334,1727230240396,-5954.246304,0.00016869,2]
[339088337,1727230240405,-5954.246304,0.00017028,2]
[339088339,1727230240416,-5954.246304,0.00017432,2]
[339088341,1727230240425,-73408.49012271,0.00017755,2]
[339088343,1727230240435,-6322.31705878,0.00017755,2]
[339088345,1727230240444,-500.0,0.00017773,2]
[339088347,1727230240454,-500.0,0.00017773,2]
[339088349,1727230240464,-500.0,0.00017773,2]
[339088351,1727230240473,-500.0,0.00017773,2]
[339088353,1727230240482,-500.0,0.00017773,2]
[339088355,1727230240491,-500.0,0.00017773,2]
[339088357,1727230240503,-501.56778573,0.00017773,2]
[339088359,1727230240514,-500.0,0.00017808,2]
[339088361,1727230240526,-500.0,0.00017913,2]
[339088363,1727230240537,-2695.80534388,0.00018132,2]
[339088366,1727230240548,-189.31847364,0.00018283,2]
[339088368,1727230240559,-1000.0,0.00018321,2]
[339088370,1727230240571,-501.83332365,0.00018321,2]
[339088372,1727230240579,-502.30500744,0.00018321,2]
[339088374,1727230240589,-1000.0,0.00018321,2]
[339088376,1727230240598,-870.26529023,0.00018321,2]
[339088378,1727230240607,-1000.0,0.00018321,2]
[339088380,1727230240617,-150.0,0.00018404,2]
[339088381,1727230240629,-629.5197843,0.00018505,2]
[339088382,1727230240640,-823.0,0.00018534,2]
[339088383,1727230240650,-49468.5653712,0.00018552,2]
[339088384,1727230240660,-3161.15852939,0.00018552,2]
[339088385,1727230240670,-2732.96070359,0.00018847,2]
[339088386,1727230240680,-1000.0,0.00018848,2]
[339088387,1727230240689,-500.0,0.00018856,2]
[339088388,1727230240698,-150.0,0.00018885,2]
[339088389,1727230240708,-2319.69447679,0.0001889,2]
[339088390,1727230240717,-189.31847364,0.000189,2]
[339088391,1727230240727,-49468.5653712,0.00018928,3]
[339088392,1727230240738,-3161.15852939,0.00018928,3]
[339088393,1727230240749,-4338.54683032,0.00018938,3]
[339088845,1727230725517,190.56975121,0.00021,60]
[339088848,1727231214876,825.0081805,0.00014013,2]
[339088849,1727231237684,361.027251,0.00014013,2]
[339088852,1727231322199,1080.78894385,0.0002,120]
[339088854,1727231338900,2493.4802966,0.00014013,2]
[339088856,1727231362512,-224.6425814,0.00014789,2]
[339088857,1727231362534,-13.67839341,0.00014887,2]
[339088902,1727231432457,-286.0,0.00014887,2]
[339088904,1727231432467,-300.0,0.00014887,2]
[339088936,1727231432476,-367.68604193,0.00014888,2]
[339088938,1727231432769,-500.0,0.00014888,2]
[339088940,1727231432779,-500.0,0.00014888,2]